bitfinex/quotes_BTCUSD_20241110
["timestamp","ask_amount","ask_price","bid_price","bid_amount"]
[1731205691236,32.51364928,77333.0,77332.0,1.86466902]
[1731205691429,32.51364928,77333.0,77332.0,1.85855929]
[1731205691633,32.51364928,77333.0,77332.0,1.99080031]
[1731205691790,32.51364928,77333.0,77332.0,1.85855929]
[1731205691988,32.52364928,77333.0,77332.0,1.85855929]
[1731205692227,32.6608903,77333.0,77332.0,1.69384929]
[1731205692611,32.6608903,77333.0,77332.0,1.66796929]
[1731205692787,32.6608903,77333.0,77332.0,1.602988]
[1731205692986,32.6608903,77333.0,77332.0,1.66796929]
[1731205693595,32.6608903,77333.0,77332.0,1.70325929]
[1731205695270,32.53364928,77333.0,77332.0,1.70325929]
[1731205695447,32.52864928,77333.0,77332.0,1.70325929]
[1731205696063,32.52888388,77333.0,77332.0,1.70325929]
[1731205696264,32.51388388,77333.0,77332.0,1.70325929]
[1731205696666,32.52388388,77333.0,77332.0,1.70325929]
[1731205696866,32.6611249,77333.0,77332.0,1.70325929]
[1731205698000,32.6611249,77333.0,77332.0,1.60325929]
[1731205698202,32.6611249,77333.0,77332.0,1.538278]
[1731205698406,32.6611249,77333.0,77332.0,1.60325929]
[1731205698609,32.6611249,77333.0,77332.0,1.538278]
[1731205698998,32.6611249,77333.0,77332.0,1.60325929]
[1731205699198,32.6661249,77333.0,77332.0,1.60325929]
[1731205700013,32.6661249,77333.0,77332.0,1.538278]
[1731205700213,32.52888388,77333.0,77332.0,1.60325929]
[1731205700841,32.6611249,77333.0,77332.0,1.62913929]
[1731205701260,32.6611249,77333.0,77332.0,1.85248401]
[1731205701459,32.6611249,77333.0,77332.0,1.63080929]
[1731205701907,32.6611249,77333.0,77332.0,1.64253129]
[1731205702452,32.6661249,77333.0,77332.0,1.64253129]
[1731205702763,32.7497249,77333.0,77332.0,1.64253129]
[1731205702982,32.7497249,77333.0,77332.0,1.06593551]
[1731205703186,32.7497249,77333.0,77332.0,0.84253129]
[1731205703404,32.7497249,77333.0,77332.0,0.81665129]
[1731205703808,32.53998905,77333.0,77332.0,0.75167]
[1731205704240,32.53998905,77333.0,77332.0,0.5]
[1731205704451,32.53998905,77333.0,77329.0,0.18069395]
[1731205704452,0.03,77330.0,77329.0,0.18069395]
[1731205704653,0.08155959,77330.0,77325.0,0.06457275]
[1731205704829,0.13224102,77326.0,77325.0,0.06457275]
[1731205705175,0.13247562,77326.0,77325.0,0.06457275]
[1731205706016,0.17927562,77326.0,77325.0,0.06457275]
[1731205706217,0.17927562,77326.0,77324.0,0.75]
[1731205706420,0.13224102,77325.0,77324.0,0.5]
[1731205706629,0.13224102,77325.0,77324.0,0.56412897]
[1731205707072,0.18496102,77325.0,77322.0,0.06401326]
[1731205707289,0.13224102,77323.0,77317.0,0.56494291]
[1731205707493,0.13224102,77318.0,77317.0,0.5]
[1731205707690,0.13224102,77318.0,77317.0,0.56494291]
[1731205707989,0.0468,77316.0,77302.0,0.25]
[1731205708193,0.13224102,77303.0,77301.0,0.06404048]
[1731205708443,0.13224102,77302.0,77298.0,0.06420105]
[1731205708644,0.13224102,77299.0,77297.0,0.06454946]
[1731205709029,0.13224102,77299.0,77295.0,0.12774345]
[1731205709239,0.13224102,77299.0,77297.0,0.06454946]
[1731205709240,0.13247562,77299.0,77297.0,0.06454946]
[1731205709542,0.13247562,77299.0,77298.0,0.09008105]
[1731205710429,0.12241562,77299.0,77298.0,0.02588]
[1731205710632,0.11274679,77299.0,77298.0,0.87588]
[1731205710851,0.11274679,77299.0,77298.0,0.94008105]
[1731205711059,0.0002346,77299.0,77298.0,0.94008105]
[1731205711262,0.0002346,77299.0,77298.0,1.74508105]
[1731205712098,0.0002346,77299.0,77298.0,1.74008105]
[1731205712325,0.0002346,77299.0,77298.0,1.93052207]
[1731205712546,0.0002346,77299.0,77298.0,2.01102207]
[1731205713392,0.0002346,77299.0,77298.0,2.01269207]
[1731205713611,0.02752968,77343.0,77331.0,0.59000226]
[1731205714465,0.02752968,77343.0,77332.0,0.27588]
[1731205714673,0.02752968,77343.0,77332.0,0.33992479]
[1731205715092,0.02752968,77343.0,77332.0,1.13992479]
[1731205716402,0.02752968,77343.0,77332.0,1.23992479]
[1731205716602,0.0764,77340.0,77332.0,0.82588]
[1731205716957,32.43115445,77333.0,77332.0,0.08992479]
[1731205717168,32.43115445,77333.0,77332.0,0.33992479]
[1731205717543,32.43115445,77333.0,77332.0,0.46724863]
[1731205717890,32.43115445,77333.0,77332.0,0.33992479]
[1731205718136,32.43115445,77333.0,77332.0,0.43992479]
[1731205718339,32.28597291,77333.0,77332.0,0.43992479]
[1731205718941,32.15373189,77333.0,77332.0,0.43992479]
[1731205719496,32.28597291,77333.0,77332.0,0.37588]
[1731205719688,32.28597291,77333.0,77332.0,0.43992479]
[1731205719911,32.28597291,77333.0,77332.0,0.82588]
[1731205720318,32.28597291,77333.0,77332.0,0.88992479]
[1731205720717,32.28597291,77333.0,77332.0,0.82588]
[1731205720939,32.28597291,77333.0,77330.0,0.02588]
[1731205721161,0.13224102,77332.0,77331.0,0.09000226]
[1731205721915,31.81597291,77333.0,77332.0,0.82588]
[1731205722128,31.81597291,77333.0,77332.0,1.07588]
[1731205722324,31.81597291,77333.0,77332.0,1.38992479]
[1731205723167,31.81597291,77333.0,77332.0,1.63992479]
[1731205723831,31.81597291,77333.0,77332.0,1.63986397]
[1731205724858,31.81597291,77333.0,77332.0,0.83992479]
[1731205725246,31.79009291,77333.0,77332.0,0.83992479]
[1731205725451,31.73833291,77333.0,77332.0,0.83992479]
[1731205725874,31.71245291,77333.0,77332.0,1.63992479]
[1731205726078,31.66069291,77333.0,77332.0,1.55]
[1731205726484,31.76705393,77333.0,77332.0,0.73529]
[1731205726692,31.71529393,77333.0,77332.0,0.77439181]
[1731205726896,31.71529393,77333.0,77332.0,0.09086181]
[1731205727103,31.71529393,77333.0,77332.0,0.6303091]
[1731205727104,31.66353393,77333.0,77332.0,0.6303091]
[1731205727307,31.63765393,77333.0,77332.0,0.6303091]
[1731205727513,31.61177393,77333.0,77332.0,0.8544291]
[1731205727902,31.56001393,77333.0,77332.0,0.3544291]
[1731205728134,31.53413393,77333.0,77332.0,0.3544291]
[1731205728363,31.48237393,77333.0,77332.0,0.3544291]
[1731205728566,31.48237393,77333.0,77332.0,0.1044291]
[1731205728692,31.45649393,77333.0,77332.0,0.1303091]
[1731205728901,31.32425291,77333.0,77332.0,0.6303091]
[1731205730044,31.45649393,77333.0,77332.0,0.6303091]
[1731205730245,31.45649393,77333.0,77332.0,0.56532729]
[1731205730454,31.45649393,77333.0,77332.0,0.6301478]
[1731205730664,31.45649393,77333.0,77332.0,0.1301478]
[1731205731153,31.45649393,77333.0,77332.0,0.09070051]
[1731205731380,31.45649393,77333.0,77332.0,0.02588]
[1731205731600,31.53289393,77333.0,77331.0,0.02588]
[1731205731829,0.13224102,77332.0,77331.0,0.02588]
[1731205732062,0.13224102,77332.0,77319.0,0.06443898]
[1731205732282,0.13224102,77330.0,77319.0,0.06462362]
[1731205732528,0.0495,77329.0,77321.0,0.09013051]
[1731205732750,0.0495,77329.0,77317.0,0.12745203]
[1731205732959,0.0495,77329.0,77317.0,0.06440687]
[1731205733451,31.32425291,77333.0,77330.0,0.06437126]
[1731205733676,31.32425291,77333.0,77332.0,0.06405414]
[1731205733897,31.3196878,77333.0,77332.0,0.06405414]
[1731205734103,31.3196878,77333.0,77332.0,0.86405414]
[1731205734499,31.45192882,77333.0,77332.0,0.86405414]
[1731205734962,31.45192882,77333.0,77332.0,0.96405414]
[1731205735618,31.45192882,77333.0,77332.0,0.8]
[1731205735849,31.45192882,77333.0,77332.0,0.06405414]
[1731205736092,31.45192882,77333.0,77329.0,0.16496888]
[1731205736310,0.13224102,77332.0,77330.0,0.06437126]
[1731205736573,0.13224102,77332.0,77331.0,0.06429371]
[1731205737660,0.13224102,77332.0,77329.0,0.16440331]
[1731205737872,31.3196878,77333.0,77331.0,0.8]
[1731205738314,31.3196878,77333.0,77332.0,0.41440593]
[1731205738528,31.45192882,77333.0,77332.0,0.16440593]
[1731205738951,31.45192882,77333.0,77332.0,0.1]
[1731205739363,31.45192882,77333.0,77330.0,0.86492509]
[1731205739567,0.13224102,77332.0,77331.0,0.06461496]
[1731205739783,0.32676201,77332.0,77330.0,0.8]
[1731205740011,0.13224102,77331.0,77322.0,0.86480287]
[1731205740220,31.3196878,77333.0,77326.0,0.08991111]
[1731205740424,0.19452099,77332.0,77331.0,0.09028151]
[1731205740650,0.19452099,77332.0,77322.0,0.79987358]
[1731205740880,31.3196878,77333.0,77332.0,0.08991559]
[1731205741764,31.45192882,77333.0,77329.0,0.02588]
[1731205741969,31.3196878,77333.0,77332.0,0.09061622]
[1731205742172,31.45192882,77333.0,77332.0,0.09061622]
[1731205743860,31.45192882,77333.0,77325.0,0.0902712]
[1731205744070,0.13224102,77326.0,77325.0,0.0902712]
[1731205744937,0.13224102,77326.0,77318.0,0.06499677]
[1731205745146,31.3196878,77333.0,77321.0,0.02588]
[1731205745354,0.32676201,77332.0,77324.0,0.09011058]
[1731205745942,0.32676201,77332.0,77327.0,0.8]
[1731205746091,0.32676201,77332.0,77328.0,0.0640117]
[1731205746762,0.13224102,77332.0,77328.0,0.0640117]
[1731205746901,0.13224102,77332.0,77320.0,0.09025261]
[1731205747336,0.13224102,77327.0,77321.0,0.06454262]
[1731205747543,0.13224102,77327.0,77323.0,0.25]
[1731205747746,0.13224102,77327.0,77324.0,0.06432838]
[1731205748155,0.13224102,77327.0,77321.0,0.06454262]
[1731205748952,0.13224102,77327.0,77321.0,0.86454262]
[1731205749476,0.13224102,77327.0,77321.0,1.0689737]
[1731205749697,0.13224102,77327.0,77321.0,0.86454262]
[1731205749904,0.13224102,77327.0,77322.0,0.20443108]
[1731205750112,0.13224102,77327.0,77323.0,0.20443108]
[1731205750308,0.13224102,77327.0,77324.0,0.06432838]
[1731205750562,0.13224102,77327.0,77322.0,0.26942633]
[1731205750769,0.13224102,77327.0,77324.0,0.31432838]
[1731205750896,0.13224102,77327.0,77326.0,0.8]
[1731205751107,0.13224102,77327.0,77326.0,0.86478754]
[1731205751356,0.19452099,77332.0,77326.0,0.86478754]
[1731205751561,0.13224102,77331.0,77327.0,0.02588]
[1731205751710,0.13224102,77331.0,77330.0,0.09017386]
[1731205755574,0.13224102,77331.0,77330.0,0.02588]
[1731205755998,0.13224102,77331.0,77330.0,0.09017386]
[1731205756219,0.13224102,77331.0,77330.0,0.02588]
[1731205756452,0.13224102,77331.0,77329.0,0.02588]
[1731205756666,0.17834102,77330.0,77328.0,0.20511093]
[1731205756885,0.21294102,77329.0,77307.0,0.00224182]
[1731205757102,0.13224102,77310.0,77307.0,0.00224182]
[1731205757354,0.32676201,77308.0,77292.0,0.06426038]
[1731205757574,0.13224102,77299.0,77292.0,0.06426038]
[1731205757790,0.05153233,77298.0,77292.0,0.06426038]
[1731205758235,0.08070869,77296.0,77282.0,0.06472544]
[1731205758445,0.08070869,77296.0,77292.0,0.06410826]
[1731205758671,0.13224102,77294.0,77292.0,0.06410826]
[1731205758892,0.13224102,77293.0,77291.0,0.09308318]
[1731205759298,0.13224102,77293.0,77279.0,0.02588]
[1731205759509,0.13224102,77293.0,77292.0,0.000836]
[1731205759715,0.13224102,77293.0,77285.0,0.02588]
[1731205759919,0.19452099,77292.0,77286.0,0.09032321]
[1731205760142,0.0807,77289.0,77286.0,0.09032321]
[1731205760354,0.0807,77289.0,77269.0,0.8157264]
[1731205760355,0.13224102,77288.0,77272.0,0.06495977]
[1731205760585,0.13224102,77288.0,77273.0,0.09043016]
[1731205760796,0.13224102,77286.0,77273.0,0.09043016]
[1731205761463,0.19452099,77284.0,77273.0,0.09043016]
[1731205761687,0.13224102,77283.0,77273.0,0.09043016]
[1731205762112,0.13224102,77283.0,77273.0,0.06455016]
[1731205762268,0.13224102,77283.0,77270.0,0.06437725]
[1731205762836,0.19452099,77276.0,77270.0,0.06437725]
[1731205763042,0.13224102,77273.0,77265.0,0.1]
[1731205763247,0.19452099,77272.0,77266.0,0.06491178]
[1731205763457,0.13224102,77271.0,77266.0,0.06491178]
[1731205766098,0.19452099,77270.0,77266.0,0.06491178]
[1731205766310,0.27522099,77284.0,77266.0,0.06491178]
[1731205766531,0.19452099,77274.0,77266.0,0.06491178]
[1731205766792,0.13224102,77283.0,77266.0,0.06491178]
[1731205766998,0.19452099,77276.0,77266.0,0.06491178]
[1731205767146,0.13224102,77275.0,77266.0,0.06491178]
[1731205767365,0.13224102,77275.0,77267.0,0.02588]
[1731205767560,0.13224102,77275.0,77268.0,0.09010642]
[1731205767988,0.19452099,77290.0,77274.0,0.06407135]
[1731205768153,0.19452099,77282.0,77277.0,0.02588]
[1731205768358,0.11380137,77282.0,77280.0,0.09069884]
[1731205768553,0.13224102,77289.0,77280.0,0.09069884]
[1731205768781,0.13224102,77289.0,77282.0,0.12759237]
[1731205768981,0.13224102,77289.0,77281.0,0.12759237]
[1731205769182,0.13224102,77289.0,77285.0,0.12759237]
[1731205769480,0.13224102,77286.0,77284.0,0.12759237]
[1731205769698,0.19452099,77290.0,77280.0,0.09069884]
[1731205769699,0.13224102,77285.0,77280.0,0.09069884]
[1731205769872,0.13224102,77283.0,77278.0,0.06495977]
[1731205770474,0.13224102,77279.0,77276.0,0.12759237]
[1731205770837,0.13224102,77277.0,77266.0,0.09043443]
[1731205771130,0.13224102,77274.0,77267.0,0.06427503]
[1731205771948,0.13224102,77274.0,77266.0,0.06455443]
[1731205772170,0.13224102,77274.0,77265.0,0.1]
[1731205772171,0.10636102,77274.0,77273.0,0.02588]
[1731205772357,0.10636102,77274.0,77273.0,0.0902638]
[1731205772565,0.19452099,77290.0,77265.0,0.1]
[1731205772566,0.19452099,77290.0,77281.0,0.02588]
[1731205772778,0.13224102,77289.0,77286.0,0.06496242]
[1731205772930,0.13224102,77289.0,77287.0,0.02588]
[1731205773735,0.10824102,77289.0,77287.0,0.02588]
[1731205775175,0.32676201,77288.0,77287.0,0.02588]
[1731205775378,0.13224102,77288.0,77287.0,0.02588]
[1731205776322,0.13224102,77288.0,77283.0,0.02588]
[1731205776558,0.13224102,77284.0,77271.0,0.02588]
[1731205776790,0.19452099,77287.0,77265.0,0.1]
[1731205776791,0.13224102,77272.0,77265.0,0.07836413]
[1731205776988,0.20774102,77272.0,77265.0,0.07836413]
[1731205777360,0.13224102,77270.0,77265.0,0.07836413]
[1731205777576,0.13224102,77270.0,77253.0,0.06472329]
[1731205777776,0.19452099,77271.0,77254.0,0.06645871]
[1731205777777,0.13224102,77265.0,77254.0,0.06645871]
[1731205777968,0.13224102,77256.0,77250.0,0.001672]
[1731205778462,0.13224102,77256.0,77249.0,0.06602204]
[1731205778693,0.19452099,77254.0,77249.0,0.001464]
[1731205778910,0.13224102,77253.0,77249.0,0.027344]
[1731205779350,0.13224102,77250.0,77230.0,0.8]
[1731205779574,0.1224,77251.0,77230.0,0.8]
[1731205779575,0.13224102,77243.0,77242.0,0.02588]
[1731205779789,0.13224102,77243.0,77242.0,0.02569722]
[1731205780010,0.13224102,77243.0,77242.0,0.02551444]
[1731205780892,0.13224102,77243.0,77234.0,0.02551444]
[1731205781110,0.13224102,77237.0,77234.0,0.02551444]
[1731205781585,0.27002099,77251.0,77231.0,0.12703224]
[1731205781586,0.19452099,77235.0,77231.0,0.12703224]
[1731205781813,0.13224102,77234.0,77231.0,0.0648357]
[1731205782056,0.13224102,77234.0,77231.0,0.19186794]
[1731205782284,0.19452099,77232.0,77231.0,0.12703224]
[1731205782510,0.32676201,77232.0,77223.0,0.09135051]
[1731205782724,0.13224102,77228.0,77223.0,0.027344]
[1731205782931,0.13224102,77227.0,77223.0,0.027344]
[1731205783141,0.13224102,77224.0,77223.0,0.027344]
[1731205783365,0.13224102,77224.0,77223.0,0.001464]
[1731205783800,0.13224102,77224.0,77223.0,0.09135051]
[1731205784033,0.13224102,77224.0,77223.0,0.027344]
[1731205784460,0.13224102,77224.0,77223.0,0.21824536]
[1731205784669,0.13224102,77224.0,77223.0,0.09135051]
[1731205786700,0.13224102,77224.0,77223.0,0.21828264]
[1731205786914,0.13224102,77224.0,77223.0,0.09135051]
[1731205787340,0.13224102,77224.0,77223.0,0.027344]
[1731205787790,0.13224102,77224.0,77223.0,0.15419001]
[1731205788202,0.13224102,77224.0,77223.0,0.027344]
[1731205788863,0.13224102,77224.0,77222.0,0.06482706]
[1731205788864,0.13224102,77224.0,77222.0,0.02588]
[1731205789093,0.13224102,77223.0,77222.0,0.02542604]
[1731205789315,0.13224102,77223.0,77222.0,0.15227205]
[1731205789541,0.13224102,77223.0,77222.0,0.02542604]
[1731205789769,0.13224102,77223.0,77222.0,0.0902531]
[1731205790011,0.13224102,77223.0,77222.0,0.08979914]
[1731205790692,0.10824102,77223.0,77222.0,0.08979914]
[1731205791550,0.10824102,77223.0,77222.0,0.02497208]
[1731205792260,0.08236102,77223.0,77222.0,0.02497208]
[1731205792465,0.08236102,77223.0,77220.0,0.02643608]
[1731205792895,0.08236102,77223.0,77222.0,0.02497208]
[1731205793323,0.02418861,77223.0,77222.0,0.15176371]
[1731205793762,0.14658861,77223.0,77196.0,0.8]
[1731205793973,0.13224102,77210.0,77195.0,0.001464]
[1731205794192,0.13224102,77210.0,77196.0,0.06417135]
[1731205794429,0.19452099,77209.0,77199.0,0.02588]
[1731205794650,0.19452099,77218.0,77199.0,0.02588]
[1731205794651,0.13224102,77206.0,77199.0,0.02588]
[1731205795515,0.13224102,77206.0,77198.0,0.02588]
[1731205795752,0.13224102,77206.0,77198.0,0.09002058]
[1731205795964,0.13224102,77206.0,77198.0,0.02588]
[1731205798626,0.05140937,77196.0,77195.0,0.001464]
[1731205800564,0.05140937,77196.0,77186.0,0.02588]
[1731205800806,0.0769,77201.0,77186.0,0.02588]
[1731205800807,0.13224102,77187.0,77186.0,0.0134836]
[1731205801649,0.13224102,77187.0,77186.0,0.07800779]
[1731205801858,0.13224102,77187.0,77186.0,0.0134836]
[1731205802532,0.13224102,77187.0,77172.0,0.027346]
[1731205802762,0.13224102,77181.0,77172.0,0.027346]
[1731205803627,0.13224102,77181.0,77176.0,0.06418412]
[1731205803852,0.13224102,77181.0,77178.0,0.09019142]
[1731205804063,0.13224102,77181.0,77180.0,0.09177958]
[1731205805148,0.13224102,77181.0,77180.0,0.001466]
[1731205805365,0.13224102,77181.0,77180.0,0.06589958]
[1731205805602,0.13224102,77181.0,77180.0,0.001466]
[1731205806045,0.13224102,77181.0,77177.0,0.02588]
[1731205806259,0.13224102,77181.0,77178.0,0.02588]
[1731205806472,0.13224102,77181.0,77179.0,0.06416172]
[1731205806676,0.13224102,77181.0,77180.0,0.02588]
[1731205807335,0.13224102,77181.0,77180.0,0.21736265]
[1731205807542,0.13224102,77181.0,77180.0,0.09031358]
[1731205808203,0.13224102,77181.0,77180.0,0.21734444]
[1731205808452,0.13224102,77181.0,77180.0,0.09031358]
[1731205808662,0.13224102,77181.0,77180.0,0.09114958]
[1731205809100,0.19452099,77192.0,77180.0,0.09114958]
[1731205809334,0.13224102,77191.0,77190.0,0.21713292]
[1731205809545,0.13224102,77191.0,77190.0,0.09013403]
[1731205810408,0.13224102,77191.0,77180.0,0.000836]
[1731205810409,0.13224102,77191.0,77188.0,0.02588]
[1731205810624,0.002,77215.0,77187.0,0.06480608]
[1731205810625,0.19452099,77206.0,77194.0,0.06401449]
[1731205810837,0.19452099,77205.0,77204.0,0.09052124]
[1731205811016,0.19452099,77205.0,77204.0,0.13932124]
[1731205811295,0.19452099,77205.0,77204.0,0.31033924]
[1731205811518,0.19452099,77205.0,77204.0,0.23932124]
[1731205812384,0.27142099,77241.0,77204.0,0.23932124]
[1731205812627,0.19452099,77208.0,77204.0,0.31033924]
[1731205812837,0.27142099,77241.0,77211.0,0.08993626]
[1731205813067,0.27142099,77241.0,77204.0,0.1488]
[1731205813068,0.27142099,77241.0,77214.0,0.06483678]
[1731205813296,0.002,77237.0,77211.0,0.26766256]
[1731205813503,0.002,77237.0,77212.0,0.2036063]
[1731205813714,0.002,77235.0,77213.0,0.06460437]
[1731205813918,0.27142099,77241.0,77213.0,0.06460437]
[1731205813919,0.002,77237.0,77213.0,0.06460437]
[1731205814127,0.19452099,77255.0,77218.0,0.005]
[1731205814343,0.19452099,77231.0,77230.0,0.09003589]
[1731205814566,0.19452099,77231.0,77230.0,0.19503589]
[1731205815045,0.19452099,77231.0,77230.0,0.99503589]
[1731205815278,0.05075549,77239.0,77230.0,1.02653762]
[1731205815520,0.32676201,77231.0,77230.0,0.86415589]
[1731205815732,0.13224102,77231.0,77230.0,0.90069092]
[1731205815952,0.13224102,77231.0,77230.0,0.03653503]
[1731205816150,0.13224102,77231.0,77223.0,0.12711972]
[1731205816408,0.13224102,77230.0,77224.0,0.03653503]
[1731205816618,0.13224102,77227.0,77223.0,0.03653503]
[1731205816841,0.13224102,77227.0,77224.0,0.03653503]
[1731205817074,0.13224102,77227.0,77222.0,0.03653503]
[1731205817282,0.13224102,77227.0,77223.0,0.03653503]
[1731205817523,0.13224102,77227.0,77211.0,0.253]
[1731205817524,0.13224102,77227.0,77224.0,0.03653503]
[1731205817728,0.002,77223.0,77222.0,0.12711972]
[1731205817953,0.13224102,77223.0,77222.0,0.03656171]
[1731205818266,0.13224102,77223.0,77222.0,0.16368143]
[1731205819045,0.002,77220.0,77209.0,0.12711972]
[1731205819252,0.13224102,77213.0,77210.0,0.03658681]
[1731205819443,0.13224102,77213.0,77209.0,0.12711972]
[1731205819592,0.13224102,77213.0,77210.0,0.12711972]
[1731205819783,0.13224102,77213.0,77211.0,0.12711972]
[1731205820036,0.13224102,77213.0,77210.0,0.12711972]
[1731205820240,0.13224102,77213.0,77211.0,0.12711972]
[1731205820390,0.13224102,77213.0,77206.0,0.06481672]
[1731205821444,0.19452099,77212.0,77206.0,0.06481672]
[1731205821617,0.13224102,77211.0,77206.0,0.06481672]
[1731205821823,0.13224102,77209.0,77205.0,0.00065]
[1731205822041,0.13224102,77206.0,77205.0,0.00065]
[1731205822596,0.002,77201.0,77191.0,0.253]
[1731205822800,0.13224102,77198.0,77191.0,0.253]
[1731205823030,0.13224102,77198.0,77192.0,0.02585]
[1731205823243,0.13224102,77193.0,77186.0,0.000836]
[1731205823417,0.13224102,77192.0,77186.0,0.000836]
[1731205824305,0.002,77192.0,77191.0,0.02585]
[1731205824505,0.002,77185.0,77180.0,0.000836]
[1731205824709,0.002,77185.0,77172.0,0.254466]
[1731205824710,0.002,77174.0,77172.0,0.254466]
[1731205824919,0.002,77173.0,77158.0,0.46910789]
[1731205825127,0.002,77166.0,77158.0,0.46910789]
[1731205825353,0.002,77152.0,77149.0,0.46379765]
[1731205825552,0.002,77150.0,77149.0,0.29731296]
[1731205825882,0.002,77154.0,77149.0,0.29731296]
[1731205826081,0.002,77162.0,77150.0,0.02585]
[1731205826286,0.002,77152.0,77150.0,0.02585]
[1731205826697,0.002,77156.0,77150.0,0.02585]
[1731205826991,0.002,77156.0,77149.0,0.29731296]
[1731205827597,0.002,77153.0,77149.0,0.29731296]
[1731205827797,0.002,77153.0,77144.0,0.001466]
[1731205827798,0.13224102,77150.0,77144.0,0.001466]
[1731205828061,0.13224102,77146.0,77144.0,0.001466]
[1731205828856,0.002,77138.0,77125.0,0.25]
[1731205829059,0.13224102,77132.0,77125.0,0.25]
[1731205829476,0.13224102,77131.0,77125.0,0.25]
[1731205829884,0.13424102,77131.0,77125.0,0.25]
[1731205830658,0.13224102,77131.0,77125.0,0.25]
[1731205831101,0.0816,77133.0,77125.0,0.25]
[1731205831102,0.13224102,77126.0,77125.0,0.25]
[1731205831778,0.13224102,77126.0,77125.0,0.23332632]
[1731205831993,0.13224102,77126.0,77113.0,0.001466]
[1731205831994,0.002,77120.0,77113.0,0.001466]
[1731205832199,0.23224102,77118.0,77113.0,0.001466]
[1731205832408,0.23424102,77118.0,77113.0,0.001466]
[1731205832623,0.23224102,77118.0,77113.0,0.001466]
[1731205833439,0.22857436,77118.0,77113.0,0.001466]
[1731205834134,0.22309395,77118.0,77113.0,0.001466]
[1731205837274,0.22109395,77118.0,77113.0,0.001466]
[1731205837497,0.22309395,77118.0,77113.0,0.001466]
[1731205837980,0.12109395,77118.0,77113.0,0.001466]
[1731205839115,0.22309395,77118.0,77113.0,0.001466]
[1731205839986,0.22109395,77118.0,77113.0,0.001466]
[1731205841095,0.12109395,77118.0,77113.0,0.001466]
[1731205841955,0.12109395,77118.0,77113.0,0.12875734]
[1731205842192,0.09124395,77118.0,77115.0,0.02585]
[1731205842925,0.09124395,77118.0,77101.0,0.08835851]
[1731205843140,0.19452099,77125.0,77092.0,0.25889318]
[1731205843141,0.13224102,77107.0,77092.0,0.25889318]
[1731205843349,0.13224102,77107.0,77091.0,0.0004]
[1731205843597,0.13224102,77107.0,77092.0,0.06437219]
[1731205843824,0.19452099,77104.0,77093.0,0.02585]
[1731205844041,0.13224102,77103.0,77095.0,0.02585]
[1731205844237,0.19452099,77096.0,77095.0,0.02585]
[1731205844451,0.13224102,77096.0,77095.0,0.02220194]
[1731205845083,0.13224102,77096.0,77091.0,0.0004]
[1731205845293,0.13224102,77095.0,77091.0,0.0004]
[1731205846004,0.13224102,77095.0,77094.0,0.06441235]
[1731205846229,0.13224102,77095.0,77091.0,0.0004]
[1731205847223,0.13224102,77092.0,77091.0,0.0004]
[1731205848990,0.13224102,77092.0,77091.0,0.09031004]
[1731205849233,0.19452099,77107.0,77091.0,0.02625]
[1731205849411,0.19452099,77096.0,77095.0,0.09018831]
[1731205849619,0.13224102,77096.0,77095.0,0.09018831]
[1731205849968,0.13224102,77096.0,77095.0,0.02585]
[1731205850173,0.13224102,77096.0,77095.0,0.09018831]
[1731205852689,0.19452099,77116.0,77101.0,0.02585]
[1731205852863,0.19452099,77108.0,77105.0,0.02585]
[1731205853108,0.13224102,77107.0,77105.0,0.02585]
[1731205853320,0.06578576,77107.0,77105.0,0.02585]
[1731205853524,0.19452099,77124.0,77106.0,0.09073785]
[1731205853728,0.13224102,77123.0,77108.0,0.03085]
[1731205853932,0.13224102,77123.0,77102.0,0.3262]
[1731205853933,0.13224102,77123.0,77122.0,0.09035951]
[1731205854230,0.13224102,77123.0,77122.0,0.02585]
[1731205854970,0.13224102,77123.0,77113.0,0.02585]
[1731205855516,0.19452099,77122.0,77113.0,0.02585]
[1731205855695,0.13224102,77121.0,77113.0,0.02585]
[1731205855901,0.13224102,77114.0,77113.0,0.02585]
[1731205857303,0.002,77105.0,77094.0,0.24071466]
[1731205857530,0.13224102,77098.0,77094.0,0.20987291]
[1731205857920,0.13224102,77095.0,77094.0,0.20987291]
[1731205858056,0.32676201,77095.0,77094.0,0.19256126]
[1731205858257,0.32676201,77095.0,77091.0,0.001237]
[1731205858258,0.13224102,77095.0,77091.0,0.001237]
[1731205858458,0.002,77105.0,77091.0,0.001237]
[1731205858459,0.13224102,77092.0,77091.0,0.001237]
[1731205862142,0.10639102,77092.0,77091.0,0.001237]
[1731205862349,0.20639102,77092.0,77091.0,0.001237]
[1731205863359,0.10639102,77092.0,77091.0,0.001237]
[1731205864448,0.10639102,77092.0,77086.0,0.09721076]
[1731205864660,0.002,77101.0,77087.0,0.02585]
[1731205864815,0.002,77092.0,77087.0,0.02585]
[1731205865023,0.002,77090.0,77087.0,0.02585]
[1731205865223,0.002,77090.0,77076.0,0.06489413]
[1731205865224,0.002,77090.0,77089.0,0.02585]
[1731205865476,0.002,77092.0,77089.0,0.04976913]
[1731205865785,0.002,77092.0,77091.0,0.02585]
[1731205865987,0.23424102,77092.0,77091.0,0.04976913]
[1731205866140,0.23424102,77092.0,77067.0,0.02585]
[1731205866141,0.002,77076.0,77067.0,0.02585]
[1731205866323,0.023,77085.0,77067.0,0.02585]
[1731205866324,0.13224102,77068.0,77067.0,0.02585]
[1731205866727,0.13224102,77068.0,77064.0,8e-05]
[1731205866939,0.13224102,77065.0,77064.0,8e-05]
[1731205867363,0.13424102,77065.0,77064.0,8e-05]
[1731205867560,0.13224102,77065.0,77064.0,8e-05]
[1731205869111,0.13224102,77065.0,77064.0,0.06579286]
[1731205869324,0.13224102,77065.0,77064.0,0.09164286]
[1731205869994,0.077374,77092.0,77064.0,0.09164286]
[1731205869995,0.001674,77092.0,77081.0,0.06966421]
[1731205870258,0.001674,77092.0,77080.0,0.005]
[1731205870259,0.19452099,77088.0,77085.0,0.06434877]
[1731205870469,0.13224102,77087.0,77086.0,0.09059647]
[1731205870907,0.001674,77092.0,77090.0,0.005]
[1731205871130,0.19452099,77110.0,77106.0,0.13585]
[1731205871344,0.19452099,77110.0,77106.0,0.20059088]
[1731205871564,0.19452099,77126.0,77106.0,0.20059088]
[1731205872184,0.002,77125.0,77106.0,0.20059088]
[1731205872601,0.19452099,77126.0,77106.0,0.20559088]
[1731205872835,0.19452099,77126.0,77106.0,0.43039651]
[1731205873101,0.19452099,77126.0,77106.0,0.20559088]
[1731205873293,0.19452099,77126.0,77119.0,0.06425349]
[1731205873510,0.19452099,77126.0,77124.0,0.06488433]
[1731205874008,0.13224102,77125.0,77119.0,0.07425349]
[1731205874659,0.13224102,77125.0,77119.0,0.29916881]
[1731205874866,0.13224102,77125.0,77121.0,0.06481955]